bitfinex-derivatives/quotes_BTCF0:USTF0_20210706
["timestamp","ask_amount","ask_price","bid_price","bid_amount"]
[1625579856895,1.20241972,34143.0,34131.0,1.18710137]
[1625579857015,1.37412308,34146.0,34140.0,0.97588632]
[1625579857737,0.24057544,34147.0,34140.0,0.97588632]
[1625579857739,1.38958525,34145.0,34140.0,0.97588632]
[1625579857981,0.24057544,34147.0,34140.0,0.97588632]
[1625579857983,1.37409622,34144.0,34140.0,0.97588632]
[1625579858455,1.37386746,34145.0,34140.0,0.97588632]
[1625579858937,0.24057544,34147.0,34140.0,0.48115088]
[1625579858938,0.24057544,34141.0,34140.0,0.48115088]
[1625579859057,0.45838544,34141.0,34140.0,0.48115088]
[1625579862245,0.45838544,34141.0,34140.0,0.55395088]
[1625579862365,1.83204029,34141.0,34140.0,0.55395088]
[1625579866455,2.51904876,34141.0,34140.0,0.55395088]
[1625579868140,4.06477305,34141.0,34140.0,0.55395088]
[1625579868861,2.51904876,34141.0,34140.0,0.55395088]
[1625579869822,1.14539391,34141.0,34140.0,0.55395088]
[1625579874210,2.51952011,34141.0,34140.0,0.55395088]
[1625579874335,1.14539391,34141.0,34140.0,0.55395088]
[1625579875051,2.53516755,34141.0,34140.0,0.55395088]
[1625579875292,1.16091351,34141.0,34140.0,0.55395088]
[1625579875774,2.53518549,34141.0,34140.0,0.55395088]
[1625579876734,3.73788715,34141.0,34140.0,0.55395088]
[1625579878075,3.73788715,34141.0,34132.0,0.1692949]
[1625579878304,3.73788715,34141.0,34129.0,0.55395088]
[1625579878307,3.73788715,34141.0,34129.0,0.48115088]
[1625579878308,0.68745274,34133.0,34129.0,0.48115088]
[1625579878426,0.98329274,34133.0,34129.0,0.48115088]
[1625579878550,0.68754345,34130.0,34129.0,0.48115088]
[1625579878662,0.61474345,34130.0,34129.0,0.48115088]
[1625579878900,0.70334345,34130.0,34129.0,0.48115088]
[1625579879021,1.83340406,34130.0,34129.0,0.48115088]
[1625579879140,2.31455494,34130.0,34129.0,0.48115088]
[1625579880823,3.34597793,34130.0,34129.0,0.48115088]
[1625579881064,1.1114164,34130.0,34129.0,0.48115088]
[1625579883889,1.1114164,34130.0,34129.0,0.72251088]
[1625579884670,2.14303896,34130.0,34129.0,0.72251088]
[1625579885570,1.1114164,34130.0,34129.0,0.72251088]
[1625579888154,2.14318574,34130.0,34129.0,0.72251088]
[1625579888395,1.1114164,34130.0,34129.0,0.72251088]
[1625579890460,2.14335908,34130.0,34129.0,0.72251088]
[1625579891166,3.34743724,34130.0,34129.0,0.72251088]
[1625579891404,2.14335908,34130.0,34129.0,0.72251088]
[1625579893148,2.14335908,34130.0,34129.0,0.48193544]
[1625579893270,2.14335908,34130.0,34127.0,0.17058933]
[1625579893271,2.35411908,34130.0,34127.0,0.17058933]
[1625579893514,2.35411908,34130.0,34122.0,1.43460165]
[1625579893516,2.35411908,34130.0,34126.0,0.17076089]
[1625579893519,1.03236836,34128.0,34126.0,0.17076089]
[1625579893752,1.03236836,34128.0,34122.0,0.24057544]
[1625579893753,1.03242289,34127.0,34124.0,0.17082718]
[1625579893993,1.03242289,34127.0,34123.0,0.17091298]
[1625579893994,1.03243711,34125.0,34123.0,0.17091298]
[1625579894471,0.01550828,34124.0,34123.0,0.17091298]
[1625579894594,0.01550828,34124.0,34122.0,0.41154557]
[1625579894834,1.04797856,34124.0,34122.0,0.41154557]
[1625579895317,0.496659,34123.0,34122.0,0.17097013]
[1625579896638,0.48115088,34123.0,34122.0,0.17097013]
[1625579897121,0.76623088,34123.0,34122.0,0.17097013]
[1625579897365,0.78173947,34123.0,34121.0,0.463942]
[1625579897483,1.8142647,34123.0,34121.0,0.463942]
[1625579897602,1.79875611,34123.0,34121.0,0.463942]
[1625579898145,0.01550871,34122.0,34121.0,0.463942]
[1625579898386,1.79875611,34123.0,34121.0,0.463942]
[1625579899226,1.03260451,34122.0,34121.0,0.2929]
[1625579899710,1.51374384,34123.0,34121.0,0.46405928]
[1625579900670,1.51374384,34123.0,34121.0,0.69521928]
[1625579901152,1.03290961,34122.0,34121.0,0.69521928]
[1625579901450,1.51405483,34123.0,34121.0,0.52406]
[1625579901691,1.51405483,34123.0,34121.0,0.46416233]
[1625579901932,2.25346566,34122.0,34121.0,0.2929]
[1625579902054,2.58648566,34122.0,34121.0,0.2929]
[1625579902412,3.96435731,34122.0,34118.0,0.17146274]
[1625579902773,2.23911542,34119.0,34117.0,0.17161945]
[1625579902893,1.03327515,34118.0,34117.0,0.17161945]
[1625579903013,1.03327515,34118.0,34116.0,0.17162892]
[1625579903133,1.03332847,34117.0,34116.0,0.17162892]
[1625579903378,1.51447935,34117.0,34115.0,0.41227155]
[1625579903495,1.52998977,34117.0,34115.0,0.41227155]
[1625579903734,1.0333499,34116.0,34115.0,0.41227155]
[1625579903854,1.0333499,34116.0,34115.0,0.17169611]
[1625579904098,1.04886148,34116.0,34112.0,1.03022517]
[1625579904222,3.6333826,34116.0,34113.0,0.17203042]
[1625579904339,3.6333826,34116.0,34110.0,1.0321825]
[1625579904457,8.09151361,34114.0,34111.0,0.17215348]
[1625579904821,3.61918964,34112.0,34106.0,1.03377387]
[1625579905064,1.03322182,34109.0,34105.0,1.03288821]
[1625579905296,4.2546,34114.0,34104.0,1.20503624]
[1625579905297,0.72172632,34106.0,34104.0,1.03309184]
[1625579905541,0.72172632,34106.0,34105.0,1.03306126]
[1625579906020,0.72172632,34106.0,34105.0,2.23845386]
[1625579906500,0.72172632,34106.0,34105.0,1.03306126]
[1625579907948,0.72172632,34106.0,34102.0,1.61494486]
[1625579907949,0.72172632,34106.0,34104.0,1.03128401]
[1625579908065,0.97408632,34106.0,34104.0,1.03128401]
[1625579908187,0.97408632,34106.0,34103.0,1.03181324]
[1625579908606,0.97408632,34106.0,34102.0,1.03239328]
[1625579908847,0.97408632,34106.0,34101.0,1.03183119]
[1625579909086,0.97408632,34106.0,34100.0,1.03182469]
[1625579909327,0.24057544,34101.0,34099.0,1.20380306]
[1625579909570,0.24057544,34101.0,34100.0,1.03181974]
[1625579914855,0.24057544,34101.0,34099.0,1.02976223]
[1625579915336,0.24057544,34100.0,34099.0,1.02976223]
[1625579916779,0.24057544,34100.0,34099.0,2.22984741]
[1625579917501,0.24057544,34100.0,34099.0,1.02976223]
[1625579918163,0.24057544,34100.0,34099.0,2.22953274]
[1625579922972,0.24057544,34100.0,34099.0,3.59685749]
[1625579923449,0.24057544,34100.0,34099.0,3.83743293]
[1625579923931,0.24057544,34100.0,34099.0,3.841208]
[1625579924412,0.24057544,34100.0,34099.0,2.81144577]
[1625579924534,0.24057544,34100.0,34099.0,3.83704455]
[1625579925915,0.24057544,34100.0,34099.0,2.4697198]
[1625579926156,0.24057544,34100.0,34099.0,3.83816486]
[1625579926876,0.24057544,34100.0,34099.0,2.4697198]
[1625579927478,0.24057544,34100.0,34099.0,3.83765241]
[1625579927718,0.24057544,34100.0,34099.0,2.4697198]
[1625579928741,0.24057544,34100.0,34099.0,3.83773497]
[1625579929224,0.24057544,34100.0,34099.0,2.4697198]
[1625579929462,0.24057544,34100.0,34099.0,3.83798913]
[1625579931026,0.24057544,34106.0,34099.0,3.83798913]
[1625579931149,0.24057544,34106.0,34104.0,1.02604511]
[1625579931267,0.24057544,34106.0,34104.0,1.34142511]
[1625579931386,0.24057544,34106.0,34105.0,1.02901652]
[1625579931507,0.24057544,34106.0,34105.0,5.25329196]
[1625579931626,0.24057544,34112.0,34105.0,6.44910777]
[1625579931747,0.24057544,34116.0,34105.0,6.44910777]
[1625579931868,0.24057544,34116.0,34110.0,1.02367528]
[1625579932227,0.24057544,34116.0,34113.0,1.26914874]
[1625579932827,0.24057544,34116.0,34114.0,0.00378407]
[1625579933430,0.24057544,34116.0,34115.0,0.48115088]
[1625579933787,0.24057544,34116.0,34115.0,0.48493447]
[1625579935171,0.24057544,34116.0,34115.0,0.48115088]
[1625579935531,0.48115088,34116.0,34115.0,0.69702088]
[1625579936075,0.48115088,34116.0,34115.0,1.72122891]
[1625579937511,0.24057544,34116.0,34115.0,1.72122891]
[1625579937633,0.24057544,34116.0,34115.0,0.69702088]
[1625579938054,0.24057544,34116.0,34115.0,0.45644544]
[1625579938174,0.24057544,34116.0,34115.0,0.24057544]
[1625579938955,0.75646096,34116.0,34115.0,0.24057544]
[1625579939075,1.03823096,34116.0,34115.0,0.24057544]
[1625579939556,1.2788064,34116.0,34115.0,0.24057544]
[1625579940398,0.76292088,34116.0,34115.0,0.24057544]
[1625579940518,0.48115088,34116.0,34115.0,0.24057544]
[1625579945927,0.99735612,34116.0,34115.0,0.24057544]
[1625579946833,1.68583678,34116.0,34115.0,0.24057544]
[1625579947073,0.99735612,34116.0,34115.0,0.24057544]
[1625579947193,0.99735612,34116.0,34115.0,0.56920544]
[1625579947314,0.48115088,34116.0,34115.0,1.08270511]
[1625579947797,0.48115088,34116.0,34115.0,1.76724193]
[1625579948940,0.51642671,34117.0,34115.0,1.76724193]
[1625579949184,1.2051883,34120.0,34115.0,1.76724193]
[1625579949185,1.2051883,34120.0,34116.0,2.22281983]
[1625579949187,1.20527062,34120.0,34116.0,2.22281983]
[1625579949422,1.2052372,34121.0,34119.0,1.19652196]
[1625579949661,0.51655482,34121.0,34120.0,0.75331997]
[1625579949902,1.20522949,34121.0,34120.0,0.75331997]
[1625579950142,0.51655482,34121.0,34120.0,0.75331997]
[1625579950865,0.51655482,34121.0,34120.0,1.43678254]
[1625579952908,1.20569011,34121.0,34120.0,1.43678254]
[1625579953808,0.51655482,34121.0,34120.0,1.43678254]
[1625579954227,1.20563343,34121.0,34120.0,1.43678254]
[1625579954467,0.51655482,34121.0,34120.0,1.43678254]
[1625579954707,1.20565749,34121.0,34120.0,1.43678254]
[1625579955191,1.20565749,34121.0,34120.0,0.75331997]
[1625579955672,2.23925268,34121.0,34120.0,0.75331997]
[1625579956214,2.23925268,34121.0,34120.0,1.4355393]
[1625579956215,1.20565749,34121.0,34120.0,1.4355393]
[1625579958255,0.51655482,34121.0,34120.0,2.4586537]
[1625579958496,1.20592966,34122.0,34120.0,2.5452537]
[1625579958614,0.51680871,34122.0,34121.0,2.21607433]
[1625579958857,1.20584958,34123.0,34121.0,2.21607433]
[1625579959095,1.20584958,34123.0,34122.0,1.19322642]
[1625579959217,1.20584958,34123.0,34122.0,1.45523642]
[1625579959337,1.00284958,34123.0,34122.0,1.45523642]
[1625579959698,0.51678889,34125.0,34122.0,3.66969693]
[1625579959818,0.51678889,34125.0,34122.0,4.1546244]
[1625579959997,0.51678889,34125.0,34123.0,0.00377641]
[1625579960117,1.03340557,34127.0,34123.0,0.00377641]
[1625579960118,0.51678535,34126.0,34124.0,1.53269616]
[1625579960482,0.51678535,34126.0,34125.0,1.53233579]
[1625579960598,0.51678535,34126.0,34125.0,1.53611222]
[1625579960718,0.51661804,34127.0,34125.0,0.51455503]
[1625579960959,1.03339239,34128.0,34126.0,0.51059722]
[1625579961079,1.03339239,34128.0,34126.0,0.51437356]
[1625579961319,0.51661859,34127.0,34126.0,0.51437356]
[1625579961439,0.5320874,34127.0,34126.0,0.51059722]
[1625579961679,0.51661859,34127.0,34126.0,0.51437331]
[1625579961804,0.51661859,34127.0,34126.0,0.99552419]
[1625579961923,0.51660703,34128.0,34126.0,2.01623843]
[1625579962162,0.51658383,34129.0,34127.0,1.53407714]
[1625579962282,0.51658383,34129.0,34128.0,0.087]
[1625579962403,0.51658383,34129.0,34128.0,0.59706674]
[1625579962643,0.51633922,34130.0,34128.0,0.59706674]
[1625579962763,0.0154677,34129.0,34128.0,0.59706674]
[1625579963245,0.51633922,34130.0,34128.0,0.59706674]
[1625579963606,1.27308182,34132.0,34129.0,0.77079505]
[1625579963607,0.51628263,34131.0,34129.0,0.77079505]
[1625579963728,0.51628263,34131.0,34130.0,0.24057544]
[1625579964867,0.53175068,34131.0,34130.0,0.24057544]
[1625579965469,1.5637534,34131.0,34130.0,0.24057544]
[1625579965710,2.76776218,34131.0,34130.0,0.24057544]
[1625579966852,1.5637534,34131.0,34130.0,0.24057544]
[1625579967573,1.54828535,34131.0,34130.0,0.24057544]
[1625579968532,0.51628263,34131.0,34130.0,0.24057544]
[1625579969012,1.54802136,34131.0,34130.0,0.24057544]
[1625579969794,1.56348982,34131.0,34130.0,0.24057544]
[1625579970035,2.76718877,34131.0,34130.0,0.24057544]
[1625579970154,3.06114877,34131.0,34130.0,0.24057544]
[1625579971294,4.43699814,34131.0,34130.0,0.24057544]
[1625579971835,4.67757358,34131.0,34130.0,0.24057544]
[1625579973280,4.67757358,34131.0,34121.0,0.22149794]
[1625579973520,1.03218842,34122.0,34120.0,0.0728]
[1625579973639,1.34933842,34122.0,34120.0,0.0728]
[1625579973761,2.23651464,34121.0,34120.0,0.0728]
[1625579973882,2.95824096,34121.0,34120.0,0.0728]
[1625579974007,2.97369541,34121.0,34120.0,0.0728]
[1625579974725,4.35026985,34121.0,34120.0,0.0728]
[1625579975563,4.3348154,34121.0,34120.0,0.0728]
[1625579981634,5.88493219,34121.0,34120.0,0.0728]
[1625579982113,5.88493219,34121.0,34110.0,1.02205619]
[1625579982360,1.03355459,34112.0,34108.0,1.02280855]
[1625579982539,1.26366459,34112.0,34108.0,1.02280855]
[1625579982664,1.26366459,34112.0,34106.0,1.19327664]
[1625579982665,1.03351308,34109.0,34105.0,1.02349597]
[1625579982900,1.03351308,34109.0,34106.0,1.02405971]
[1625579983318,1.03367357,34110.0,34106.0,1.02405971]
[1625579983681,5.0695,34108.0,34106.0,1.02405971]
[1625579983920,0.96230176,34107.0,34106.0,1.02405971]
[1625579984770,0.96230176,34107.0,34106.0,2.21823291]
[1625579988910,0.96230176,34107.0,34106.0,3.58414077]
[1625579989271,0.96230176,34107.0,34106.0,3.67084077]
[1625579989392,0.96230176,34107.0,34106.0,3.58414077]
[1625579989692,0.96230176,34107.0,34106.0,3.91743077]
[1625579989812,0.96230176,34107.0,34106.0,7.88543077]
[1625579989932,0.24057544,34107.0,34106.0,9.66375598]
[1625579990054,1.27427262,34116.0,34106.0,9.66375598]
[1625579990174,1.27427262,34116.0,34113.0,1.25528341]
[1625579990413,0.24057544,34116.0,34114.0,1.02385968]
[1625579990654,0.24057544,34116.0,34115.0,2.2164384]
[1625579990893,0.24057544,34116.0,34115.0,3.57944132]
[1625579991974,0.24057544,34116.0,34115.0,3.82001676]
[1625579994384,0.24057544,34116.0,34115.0,2.2164384]
[1625579994623,0.32689195,34116.0,34115.0,2.2164384]
[1625579994743,0.32689195,34116.0,34115.0,1.02297157]
[1625579994865,0.24057544,34116.0,34115.0,1.02297157]
[1625579995942,0.48115088,34116.0,34115.0,1.02297157]
[1625579999370,0.567462,34116.0,34115.0,1.02297157]
[1625580000091,0.48115088,34116.0,34115.0,1.02297157]
[1625580002802,0.48115088,34116.0,34113.0,1.19211932]
[1625580002804,0.48115088,34116.0,34113.0,0.08531223]
[1625580002806,4.10011212,34116.0,34113.0,0.08531223]
[1625580003036,4.11540842,34116.0,34113.0,0.08531223]
[1625580003277,3.6192589,34114.0,34110.0,0.37828975]
[1625580003398,3.6192589,34114.0,34110.0,0.08538975]
[1625580003518,2.24051505,34111.0,34109.0,0.08541062]
[1625580003637,2.54580505,34111.0,34109.0,0.08541062]
[1625580003759,2.23999173,34110.0,34108.0,0.08542721]
[1625580004000,2.96177131,34109.0,34107.0,0.08545272]
[1625580004238,2.96177131,34109.0,34106.0,0.08550695]
[1625580004239,2.24008243,34108.0,34106.0,0.08550695]
[1625580004481,1.03382632,34107.0,34106.0,0.08550695]
[1625580005680,1.03382632,34107.0,34103.0,1.02608341]
[1625580005917,1.03353332,34108.0,34104.0,1.02635356]
[1625580006038,0.24057544,34105.0,34104.0,1.02635356]
[1625580006159,0.32686129,34105.0,34104.0,1.03017321]
[1625580006641,0.24057544,34105.0,34104.0,0.00381965]
[1625580006880,0.24057544,34105.0,34103.0,1.02655453]
[1625580007124,0.08626137,34104.0,34103.0,1.02655453]
[1625580007663,0.32683591,34105.0,34103.0,1.02655453]
[1625580008026,0.08626084,34104.0,34102.0,1.02729422]
[1625580008144,0.32683628,34104.0,34102.0,1.02729422]
[1625580008263,0.61866628,34104.0,34102.0,1.02729422]
[1625580008803,0.08625053,34103.0,34102.0,1.02729422]
[1625580009044,0.24057544,34104.0,34102.0,2.22524404]
[1625580009285,0.24057544,34104.0,34103.0,1.02652727]
[1625580010666,0.24057544,34104.0,34103.0,2.22761416]
[1625580011150,0.24057544,34104.0,34103.0,2.22379394]
[1625580011449,0.24057544,34104.0,34103.0,2.22761402]
[1625580011989,0.24057544,34104.0,34103.0,2.22379394]
[1625580012288,0.24057544,34104.0,34103.0,2.227614]
[1625580012409,0.24057544,34104.0,34103.0,3.59486692]
[1625580012896,0.48115088,34109.0,34103.0,3.59486692]
[1625580012897,0.24057544,34109.0,34103.0,3.59486692]
[1625580013012,0.24057544,34109.0,34104.0,0.0892]
[1625580013135,1.03265083,34114.0,34104.0,0.0892]
[1625580013136,0.08619819,34114.0,34104.0,0.0892]
[1625580013373,0.08619819,34114.0,34105.0,0.00381911]
[1625580013612,0.08619819,34114.0,34113.0,4.8456]
[1625580013733,0.08619819,34114.0,34113.0,5.23663]
[1625580013853,1.03248575,34117.0,34113.0,5.23663]
[1625580013973,3.30029031,34120.0,34113.0,5.23663]
[1625580013975,3.30029031,34120.0,34113.0,7.45748994]
[1625580013976,1.96242479,34120.0,34113.0,7.45748994]
[1625580014092,1.03252479,34120.0,34119.0,0.48115088]
[1625580014572,0.82632479,34120.0,34119.0,0.48115088]
[1625580014995,1.20458358,34122.0,34119.0,0.48115088]
[1625580015115,1.25364237,34123.0,34120.0,0.087]
[1625580015234,0.24057544,34126.0,34120.0,0.087]
[1625580015235,0.24057544,34126.0,34120.0,0.3232]
[1625580015475,0.24057544,34126.0,34120.0,1.8555843]
[1625580015595,0.24057544,34126.0,34121.0,0.00383029]
[1625580015718,0.057,34137.0,34121.0,1.53579541]
[1625580015956,0.057,34137.0,34122.0,1.53130874]
[1625580016076,0.24057544,34135.0,34128.0,0.48115088]
[1625580016196,0.24057544,34135.0,34130.0,4.4557]
[1625580018122,0.24057544,34135.0,34134.0,0.24057544]
[1625580018724,0.24057544,34138.0,34134.0,0.24057544]
[1625580019447,0.24057544,34142.0,34134.0,0.24057544]
[1625580019567,0.92795155,34142.0,34136.0,0.67868448]
[1625580019686,0.92795155,34142.0,34136.0,0.91200448]
[1625580020050,0.84792017,34145.0,34139.0,0.67789737]
[1625580020170,0.84792017,34145.0,34144.0,0.82949088]
[1625580020530,0.16057544,34145.0,34144.0,0.82949088]
[1625580020651,0.16057544,34145.0,34144.0,4.92109088]
[1625580021912,0.16057544,34145.0,34144.0,4.99389088]
[1625580022033,0.24057544,34151.0,34144.0,4.99389088]
[1625580022155,1.54477632,34156.0,34150.0,0.24057544]
[1625580022277,0.24057544,34163.0,34150.0,0.24057544]
[1625580022280,1.54341959,34157.0,34150.0,0.24057544]
[1625580022518,1.34041959,34157.0,34150.0,0.24057544]
[1625580022755,1.54338693,34159.0,34150.0,0.24057544]
[1625580022994,0.24057544,34163.0,34150.0,0.24057544]
[1625580023357,0.24057544,34163.0,34151.0,0.5]
[1625580023476,0.24057544,34163.0,34151.0,0.78674]
[1625580023598,0.24057544,34163.0,34151.0,0.28674]
[1625580024134,0.24057544,34163.0,34162.0,0.37731282]
[1625580024256,0.24057544,34163.0,34162.0,0.71285282]
[1625580025636,0.24057544,34168.0,34162.0,0.71285282]
[1625580026117,0.24057544,34168.0,34167.0,0.24057544]
[1625580027380,0.24057544,34168.0,34167.0,0.51838544]
[1625580029182,0.24057544,34168.0,34167.0,0.24057544]
[1625580031287,1.36361379,34176.0,34167.0,0.24057544]
[1625580031406,1.17261379,34176.0,34168.0,0.0887]
[1625580031528,0.9701,34185.0,34168.0,0.0887]
[1625580032130,9.73138818,34199.0,34180.0,0.72172632]
[1625580032250,0.24057544,34186.0,34180.0,0.93456632]
[1625580032492,0.24057544,34189.0,34180.0,0.93456632]
[1625580032851,0.24057544,34189.0,34185.0,3.528]
[1625580033331,4.5437,34205.0,34180.0,0.93456632]
[1625580033451,4.5437,34205.0,34185.0,1.0]
[1625580033933,4.5437,34205.0,34180.0,0.72172632]
[1625580034172,0.24057544,34195.0,34194.0,0.24057544]
[1625580035433,0.53588544,34195.0,34194.0,0.24057544]
[1625580037898,0.24057544,34198.0,34194.0,0.24057544]
[1625580038020,0.24057544,34198.0,34194.0,0.53628544]
[1625580038260,0.24057544,34198.0,34197.0,0.24057544]
[1625580038380,0.24057544,34202.0,34197.0,0.24057544]
[1625580040244,0.24057544,34202.0,34201.0,0.24057544]
[1625580041145,0.24057544,34202.0,34201.0,0.56725544]
[1625580042948,0.24057544,34208.0,34201.0,0.56725544]
[1625580043435,0.05057544,34208.0,34201.0,0.56725544]
[1625580044152,0.9302,34228.0,34201.0,0.56725544]
[1625580044276,0.24057544,34217.0,34215.0,0.24057544]
[1625580045242,0.24057544,34217.0,34206.0,0.24057544]
[1625580046325,0.24057544,34207.0,34206.0,0.24057544]
[1625580046438,0.55408544,34207.0,34206.0,0.24057544]
[1625580047041,0.55408544,34207.0,34198.0,0.24057544]
[1625580047168,0.55408544,34207.0,34179.0,1.057]
[1625580047277,0.55408544,34207.0,34170.0,0.9393]
[1625580047516,0.55408544,34207.0,34171.0,1.9772]
[1625580047637,5.53722,34197.0,34172.0,1.0]
[1625580047877,5.53722,34197.0,34171.0,1.9772]
[1625580047998,0.30002,34197.0,34172.0,1.0]
[1625580048119,0.30002,34197.0,34175.0,1.0]
[1625580048239,0.30002,34197.0,34196.0,0.24057544]
[1625580048961,0.24057544,34198.0,34196.0,0.24057544]
[1625580049685,4.2521,34197.0,34196.0,0.24057544]
[1625580049805,4.46357,34197.0,34196.0,0.24057544]
[1625580050347,4.70414544,34197.0,34196.0,0.24057544]
[1625580050588,4.70414544,34197.0,34187.0,0.24057544]
[1625580052266,0.24057544,34188.0,34187.0,0.24057544]
[1625580058635,0.24057544,34188.0,34185.0,0.24057544]
[1625580058935,0.24057544,34188.0,34187.0,0.1456]
[1625580059775,0.24057544,34188.0,34181.0,0.24057544]
[1625580060373,0.24057544,34182.0,34181.0,0.24057544]
[1625580060494,0.46935544,34182.0,34181.0,0.24057544]
[1625580061937,0.4845941,34182.0,34181.0,0.24057544]
[1625580063621,0.4845941,34182.0,34172.0,0.24057544]
[1625580064102,0.01523941,34181.0,34173.0,0.00382672]
[1625580064342,0.46935544,34182.0,34176.0,0.24057544]
[1625580064946,0.01523987,34181.0,34176.0,0.24057544]
[1625580065184,0.46935544,34182.0,34176.0,0.24057544]
[1625580066449,0.24057544,34177.0,34176.0,0.24057544]
[1625580069756,0.24057544,34177.0,34176.0,0.32797544]
[1625580069877,0.24057544,34177.0,34176.0,0.24057544]
[1625580073427,0.24057544,34177.0,34176.0,0.24443413]
[1625580074510,0.24057544,34177.0,34176.0,0.53266413]
[1625580077579,0.24057544,34177.0,34176.0,0.52880544]
[1625580077992,0.24057544,34177.0,34176.0,0.53266163]
[1625580079979,0.24057544,34182.0,34176.0,0.53266163]
[1625580080337,0.24057544,34182.0,34177.0,0.00385613]
[1625580080457,0.24057544,34182.0,34181.0,0.24057544]
[1625580081300,0.24057544,34182.0,34181.0,0.55760544]
[1625580081541,0.24057544,34183.0,34181.0,0.55760544]
[1625580081779,0.24057544,34183.0,34181.0,0.56146123]
[1625580081959,0.24057544,34183.0,34181.0,0.55760544]
[1625580082330,0.24057544,34183.0,34181.0,0.24057544]
[1625580082567,0.24057544,34182.0,34181.0,0.24057544]
[1625580082681,0.56661544,34182.0,34181.0,0.24057544]
[1625580082804,5.47736667,34182.0,34181.0,0.24057544]
[1625580083222,7.53423286,34182.0,34181.0,0.24057544]
[1625580083460,6.50580436,34182.0,34181.0,0.24057544]
[1625580083702,7.5342748,34182.0,34181.0,0.24057544]
[1625580084727,8.73529873,34182.0,34181.0,0.24057544]
[1625580086409,10.10902455,34182.0,34181.0,0.24057544]
[1625580087312,8.73529873,34182.0,34181.0,0.24057544]
[1625580087552,8.73529873,34182.0,34178.0,0.24057544]
[1625580087794,2.23263984,34179.0,34178.0,0.24057544]
[1625580088153,2.24792907,34179.0,34178.0,0.24057544]
[1625580088513,2.48850451,34179.0,34178.0,0.24057544]
[1625580088992,3.69141442,34179.0,34178.0,0.24057544]
[1625580089112,4.03295442,34179.0,34178.0,0.24057544]
[1625580089897,2.83004451,34179.0,34178.0,0.24057544]
[1625580090435,4.03420334,34179.0,34178.0,0.24057544]
[1625580092843,5.41034136,34179.0,34178.0,0.24057544]
[1625580093866,5.41034136,34179.0,34176.0,0.24057544]
[1625580094103,4.81709349,34177.0,34176.0,0.24057544]
[1625580094462,4.83238175,34177.0,34176.0,0.24057544]
[1625580094583,5.07295719,34177.0,34176.0,0.24057544]
[1625580096205,5.07295719,34177.0,34176.0,7.544e-05]
[1625580096325,5.07295719,34177.0,34172.0,0.24057544]
[1625580096446,5.07295719,34177.0,34171.0,0.17107077]
[1625580096567,0.48115088,34172.0,34171.0,0.17107077]
[1625580096688,5.53014702,34172.0,34168.0,0.17121688]
[1625580096929,5.54543659,34172.0,34167.0,0.24057544]
[1625580097047,5.54543659,34172.0,34166.0,0.51374076]
[1625580097171,3.43936563,34168.0,34164.0,0.51363495]
[1625580097410,1.20390463,34165.0,34164.0,0.51363495]
[1625580097529,1.52641463,34165.0,34164.0,0.51363495]
[1625580097650,2.55820967,34165.0,34163.0,0.17128175]
[1625580097772,2.57349986,34165.0,34163.0,0.17128175]
[1625580097890,2.23572825,34164.0,34162.0,0.51375924]
[1625580098013,2.25101861,34164.0,34162.0,0.51375924]
[1625580098130,1.20394324,34163.0,34162.0,0.51375924]
[1625580098611,2.71692242,34163.0,34161.0,0.51380944]
[1625580098850,1.20323694,34162.0,34160.0,0.5135403]
[1625580099094,1.20330376,34161.0,34159.0,0.51377928]
[1625580099333,0.8596061,34160.0,34159.0,0.51377928]
[1625580099572,0.51572929,34160.0,34159.0,0.51377928]
[1625580100173,0.51572929,34160.0,34159.0,0.17125976]
[1625580100413,0.51572929,34160.0,34159.0,0.51405977]
[1625580100655,0.51559419,34160.0,34158.0,0.75440335]
[1625580101137,0.17192456,34159.0,34158.0,0.75440335]
[1625580101855,0.51559297,34160.0,34158.0,0.75440335]
[1625580102338,0.85921072,34159.0,34158.0,0.24057544]
[1625580102576,0.51549208,34159.0,34158.0,0.24057544]
[1625580102696,0.75606752,34159.0,34158.0,0.24057544]
[1625580102819,0.75593797,34159.0,34158.0,0.24057544]
[1625580104259,0.75610762,34159.0,34158.0,0.24057544]
[1625580104739,0.58415437,34159.0,34158.0,0.24057544]
[1625580105342,0.75585987,34159.0,34158.0,0.24057544]
[1625580105578,1.44285659,34159.0,34158.0,0.24057544]
[1625580106120,1.44285659,34159.0,34155.0,0.51335092]
[1625580106241,2.47380642,34159.0,34155.0,0.51335092]
[1625580106479,0.51573475,34156.0,34155.0,0.17109869]
[1625580106599,0.74288475,34156.0,34155.0,0.17109869]
[1625580106720,0.46772544,34156.0,34154.0,0.75329187]
[1625580106959,0.63960174,34156.0,34154.0,0.41132935]
[1625580107499,0.9831869,34156.0,34154.0,0.24057544]
[1625580107861,0.9831869,34156.0,34153.0,0.5117661]
[1625580107982,1.20232399,34155.0,34151.0,0.5118091]
[1625580108221,0.5155995,34153.0,34151.0,0.5118091]
[1625580108643,0.24057544,34152.0,34151.0,0.5118091]
[1625580108761,0.24057544,34152.0,34150.0,0.51134992]
[1625580109005,0.24057544,34152.0,34150.0,0.17044997]
[1625580109723,0.24057544,34152.0,34149.0,0.75181633]
[1625580109962,0.24057544,34152.0,34150.0,0.510936]
[1625580110747,0.24057544,34152.0,34151.0,0.1704531]
[1625580111047,0.24057544,34152.0,34150.0,0.85198329]
[1625580111048,0.24057544,34152.0,34150.0,0.51100498]
[1625580111168,0.54378544,34152.0,34150.0,0.51100498]
[1625580111529,0.54378544,34152.0,34148.0,0.51149711]
[1625580111768,1.05887603,34152.0,34148.0,0.17049904]
[1625580112008,0.7155395,34152.0,34148.0,0.17049904]
[1625580112252,1.05891907,34152.0,34148.0,0.51158047]
[1625580112490,0.54378544,34152.0,34149.0,0.51191363]
[1625580112730,0.24057544,34150.0,34149.0,0.17063788]
[1625580113995,0.24057544,34150.0,34149.0,0.51206086]
[1625580114657,0.24057544,34150.0,34149.0,0.17063788]
[1625580114897,0.24057544,34150.0,34147.0,0.6825515]
[1625580114899,0.24057544,34150.0,34147.0,0.51180529]
[1625580115135,0.24057544,34150.0,34148.0,0.1705918]
[1625580115376,0.24057544,34150.0,34147.0,0.51182519]
[1625580116041,0.24057544,34150.0,34148.0,0.51222108]
[1625580116458,0.24057544,34150.0,34148.0,0.17074036]
[1625580116698,0.24057544,34149.0,34147.0,0.51253788]
[1625580116939,0.24057544,34149.0,34147.0,0.17080812]
[1625580118443,0.24057544,34149.0,34147.0,0.51214699]
[1625580118568,0.24057544,34149.0,34148.0,0.0872]
[1625580118805,0.24057544,34149.0,34148.0,0.39645]
[1625580118926,0.24057544,34149.0,34148.0,1.24925493]
[1625580119168,0.24057544,34149.0,34148.0,1.50280738]
[1625580119409,0.24057544,34149.0,34148.0,2.52499935]
[1625580119525,0.24057544,34150.0,34148.0,2.52499935]
[1625580119886,0.24057544,34150.0,34149.0,2.21350309]
[1625580120128,0.24057544,34150.0,34149.0,3.40389415]
[1625580120730,0.24057544,34150.0,34149.0,3.88504503]
[1625580120850,0.24057544,34150.0,34149.0,3.97344503]
[1625580121030,0.24057544,34150.0,34149.0,3.88504503]
[1625580121271,0.24057544,34150.0,34149.0,5.24306351]
[1625580121751,0.24057544,34150.0,34149.0,3.88504503]